[Event "Titled Tuesday Blitz August 1 Late 2023"]
[White "Davidson, Kevin"]
[Black "Berezin, Viktor"]
[WhiteFideId "2056810"]
[BlackFideId "14107872"]
[WhiteElo "2419"]
[BlackElo "2534"]
[Result "0-1"]
[Round "7"]
[TimeControl "180+1"]
[Date "2023.08.01"]
[WhiteClock "0:00:00"]
[BlackClock "0:00:50"]
[Board "76"]

1. e4 {[%clk 0:03:00]}  g6 {[%clk 0:02:53]} 2. d4 {[%clk 0:03:00]}  Bg7 {[%clk 0:02:47]} 3. Nc3 {[%clk 0:03:00]}  d6 {[%clk 0:02:47]} 4. f4 {[%clk 0:02:59]}  Nf6 {[%clk 0:02:48]} 5. Nf3 {[%clk 0:02:59]}  O-O {[%clk 0:02:49]} 6. e5 {[%clk 0:03:00]}  Ne8 {[%clk 0:02:48]} 7. Bc4 {[%clk 0:02:47]}  a6 {[%clk 0:02:46]} 8. Qe2 {[%clk 0:02:30]}  b5 {[%clk 0:02:43]} 9. Bb3 {[%clk 0:02:30]}  c5 {[%clk 0:02:43]} 10. dxc5 {[%clk 0:02:19]}  Nc6 {[%clk 0:02:34]} 11. cxd6 {[%clk 0:02:04]}  exd6 {[%clk 0:02:35]} 12. e6 {[%clk 0:01:45]}  fxe6 {[%clk 0:02:24]} 13. Bxe6+ {[%clk 0:01:45]}  Kh8 {[%clk 0:02:20]} 14. O-O {[%clk 0:01:09]}  Bxe6 {[%clk 0:02:13]} 15. Qxe6 {[%clk 0:01:09]}  Nc7 {[%clk 0:02:13]} 16. Qh3 {[%clk 0:01:05]}  Kg8 {[%clk 0:02:03]} 17. Ng5 {[%clk 0:00:59]}  h6 {[%clk 0:02:03]} 18. Ne6 {[%clk 0:00:59]}  Nxe6 {[%clk 0:02:03]} 19. Qxe6+ {[%clk 0:00:58]}  Kh7 {[%clk 0:02:04]} 20. Nd5 {[%clk 0:00:50]}  Nd4 {[%clk 0:01:46]} 21. Qe4 {[%clk 0:00:46]}  Nf5 {[%clk 0:01:38]} 22. c3 {[%clk 0:00:38]}  Rc8 {[%clk 0:01:37]} 23. Bd2 {[%clk 0:00:34]}  Re8 {[%clk 0:01:35]} 24. Qd3 {[%clk 0:00:33]}  Rc4 {[%clk 0:01:29]} 25. Rae1 {[%clk 0:00:31]}  Qd7 {[%clk 0:01:10]} 26. Rxe8 {[%clk 0:00:30]}  Qxe8 {[%clk 0:01:11]} 27. Re1 {[%clk 0:00:30]}  Qf7 {[%clk 0:01:11]} 28. g4 {[%clk 0:00:23]}  Rc5 {[%clk 0:01:04]} 29. gxf5 {[%clk 0:00:15]}  Rxd5 {[%clk 0:01:04]} 30. fxg6+ {[%clk 0:00:15]}  Qxg6+ {[%clk 0:01:05]} 31. Qxg6+ {[%clk 0:00:13]}  Kxg6 {[%clk 0:01:06]} 32. Be3 {[%clk 0:00:12]}  Kf5 {[%clk 0:01:03]} 33. Kf2 {[%clk 0:00:11]}  Bf6 {[%clk 0:01:04]} 34. Kf3 {[%clk 0:00:09]}  Rd3 {[%clk 0:01:00]} 35. Rg1 {[%clk 0:00:04]}  d5 {[%clk 0:01:00]} 36. Ke2 {[%clk 0:00:04]}  Ke4 {[%clk 0:01:00]} 37. Bf2 {[%clk 0:00:04]}  Rh3 {[%clk 0:00:59]} 38. Bg3 {[%clk 0:00:03]}  h5 {[%clk 0:00:58]} 39. Kf2 {[%clk 0:00:03]}  Kf5 {[%clk 0:00:53]} 40. Kg2 {[%clk 0:00:03]}  Kg4 {[%clk 0:00:54]} 41. Rd1 {[%clk 0:00:01]}  h4 {[%clk 0:00:53]} 42. Bf2 {[%clk 0:00:01]}  Rf3 {[%clk 0:00:51]} 43. Rxd5 {[%clk 0:00:01]}  h3+ {[%clk 0:00:51]} 44. Kf1 {[%clk 0:00:01]}  Rxf4 {[%clk 0:00:52]} 45. Ke2 {[%clk 0:00:01]}  Re4+ {[%clk 0:00:51]} 46. Be3 {[%clk 0:00:01]}  Be7 {[%clk 0:00:48]} 47. Rd4 {[%clk 0:00:02]}  Kf5 {[%clk 0:00:48]} 48. Rxe4 {[%clk 0:00:02]}  Kxe4 {[%clk 0:00:49]} 49. Bg1 {[%clk 0:00:01]}  Bd6 {[%clk 0:00:49]} 50. b3 {[%clk 0:00:02]}  Be5 {[%clk 0:00:49]} 51. Kd2 {[%clk 0:00:01]}  Bf4+ {[%clk 0:00:48]} 52. Kc2 {[%clk 0:00:01]}  Kf3 {[%clk 0:00:49]} 53. c4 {[%clk 0:00:02]}  bxc4 {[%clk 0:00:49]} 54. bxc4 {[%clk 0:00:00]}  Kg2 {[%clk 0:00:50]} 0-1


[Site "https://www.chess.com"]

[Event "Titled Tuesday Blitz August 1 Late 2023"]
[White "Pein, Jonathan"]
[Black "Vovk, Orest"]
[WhiteFideId "417092"]
[BlackFideId "14113490"]
[WhiteElo "2412"]
[BlackElo "2523"]
[Result "1-0"]
[Round "7"]
[TimeControl "180+1"]
[Date "2023.08.01"]
[WhiteClock "0:01:00"]
[BlackClock "0:00:07"]
[Board "78"]

1. e4 {[%clk 0:02:59]}  g5 {[%clk 0:02:56]} 2. d4 {[%clk 0:02:59]}  g4 {[%clk 0:02:56]} 3. Qxg4 {[%clk 0:02:58]}  d5 {[%clk 0:02:56]} 4. Qe2 {[%clk 0:02:54]}  dxe4 {[%clk 0:02:54]} 5. Qxe4 {[%clk 0:02:55]}  Nf6 {[%clk 0:02:55]} 6. Qd3 {[%clk 0:02:44]}  Nc6 {[%clk 0:02:55]} 7. Nc3 {[%clk 0:02:43]}  Qxd4 {[%clk 0:02:53]} 8. Be3 {[%clk 0:02:41]}  Qxd3 {[%clk 0:02:52]} 9. Bxd3 {[%clk 0:02:42]}  Bd7 {[%clk 0:02:52]} 10. O-O-O {[%clk 0:02:40]}  O-O-O {[%clk 0:02:52]} 11. h3 {[%clk 0:02:41]}  Rg8 {[%clk 0:02:51]} 12. Nge2 {[%clk 0:02:40]}  Ne5 {[%clk 0:02:17]} 13. Bb5 {[%clk 0:02:24]}  Rxg2 {[%clk 0:02:05]} 14. Bxa7 {[%clk 0:02:14]}  Bxb5 {[%clk 0:01:58]} 15. Nxb5 {[%clk 0:02:15]}  Rxd1+ {[%clk 0:01:58]} 16. Rxd1 {[%clk 0:02:14]}  b6 {[%clk 0:01:56]} 17. a4 {[%clk 0:02:05]}  Bh6+ {[%clk 0:01:49]} 18. Kb1 {[%clk 0:02:05]}  Rxf2 {[%clk 0:01:49]} 19. Nec3 {[%clk 0:02:05]}  Nc4 {[%clk 0:01:29]} 20. b3 {[%clk 0:01:54]}  Nd2+ {[%clk 0:01:19]} 21. Kb2 {[%clk 0:01:49]}  Kb7 {[%clk 0:01:19]} 22. a5 {[%clk 0:01:44]}  c6 {[%clk 0:01:02]} 23. Bxb6 {[%clk 0:01:43]}  cxb5 {[%clk 0:01:02]} 24. Bxf2 {[%clk 0:01:43]}  b4 {[%clk 0:00:52]} 25. Na4 {[%clk 0:01:42]}  Ka6 {[%clk 0:00:51]} 26. Be1 {[%clk 0:01:38]}  Nfe4 {[%clk 0:00:48]} 27. Nc5+ {[%clk 0:01:16]}  Nxc5 {[%clk 0:00:43]} 28. Bxd2 {[%clk 0:01:16]}  Bxd2 {[%clk 0:00:38]} 29. Rxd2 {[%clk 0:01:16]}  Kxa5 {[%clk 0:00:38]} 30. Rd5 {[%clk 0:01:14]}  Kb6 {[%clk 0:00:34]} 31. Rh5 {[%clk 0:01:13]}  Kc6 {[%clk 0:00:28]} 32. Rxh7 {[%clk 0:01:13]}  f5 {[%clk 0:00:28]} 33. Rf7 {[%clk 0:01:04]}  e6 {[%clk 0:00:23]} 34. h4 {[%clk 0:01:05]}  Ne4 {[%clk 0:00:16]} 35. h5 {[%clk 0:01:05]}  e5 {[%clk 0:00:10]} 36. h6 {[%clk 0:01:03]}  f4 {[%clk 0:00:09]} 37. h7 {[%clk 0:01:03]}  Ng5 {[%clk 0:00:07]} 38. Rf6+ {[%clk 0:01:00]} 1-0


[Site "https://www.chess.com"]

[Event "Titled Tuesday Blitz August 1 Late 2023"]
[White "Mike24147"]
[Black "Ortega Amarelle, Mariano"]
[BlackFideId "3504301"]
[WhiteElo "2391"]
[BlackElo "2518"]
[Result "1-0"]
[Round "7"]
[TimeControl "180+1"]
[Date "2023.08.01"]
[WhiteClock "0:00:23"]
[BlackClock "0:00:09"]
[Board "79"]

1. c4 {[%clk 0:02:59]}  c5 {[%clk 0:02:58]} 2. g3 {[%clk 0:02:59]}  Nc6 {[%clk 0:02:59]} 3. Bg2 {[%clk 0:02:59]}  g6 {[%clk 0:02:59]} 4. Nc3 {[%clk 0:02:59]}  Bg7 {[%clk 0:03:00]} 5. d3 {[%clk 0:03:00]}  e5 {[%clk 0:03:01]} 6. Nf3 {[%clk 0:02:59]}  Nge7 {[%clk 0:03:01]} 7. O-O {[%clk 0:02:59]}  O-O {[%clk 0:03:01]} 8. Rb1 {[%clk 0:02:58]}  d6 {[%clk 0:03:01]} 9. a3 {[%clk 0:02:59]}  h6 {[%clk 0:03:01]} 10. b4 {[%clk 0:02:58]}  Rb8 {[%clk 0:03:01]} 11. b5 {[%clk 0:02:56]}  Nd4 {[%clk 0:02:51]} 12. Ne1 {[%clk 0:02:55]}  f5 {[%clk 0:02:49]} 13. e3 {[%clk 0:02:53]}  Ne6 {[%clk 0:02:48]} 14. Nd5 {[%clk 0:02:46]}  g5 {[%clk 0:02:32]} 15. Nc2 {[%clk 0:02:43]}  f4 {[%clk 0:02:29]} 16. Bb2 {[%clk 0:02:26]}  Nf5 {[%clk 0:02:25]} 17. Bh3 {[%clk 0:02:14]}  Kh8 {[%clk 0:02:12]} 18. Bxf5 {[%clk 0:02:12]}  Rxf5 {[%clk 0:02:12]} 19. d4 {[%clk 0:02:07]}  Qf8 {[%clk 0:02:01]} 20. dxe5 {[%clk 0:02:04]}  dxe5 {[%clk 0:02:01]} 21. exf4 {[%clk 0:01:47]}  gxf4 {[%clk 0:01:58]} 22. Qe2 {[%clk 0:01:35]}  f3 {[%clk 0:01:47]} 23. Qe4 {[%clk 0:01:29]}  Ng5 {[%clk 0:01:00]} 24. Qh4 {[%clk 0:01:25]}  Rf7 {[%clk 0:00:50]} 25. Nce3 {[%clk 0:01:22]}  Be6 {[%clk 0:00:42]} 26. Ng4 {[%clk 0:01:15]}  Bxd5 {[%clk 0:00:32]} 27. cxd5 {[%clk 0:01:14]}  Rf4 {[%clk 0:00:31]} 28. gxf4 {[%clk 0:01:06]}  Qxf4 {[%clk 0:00:31]} 29. Rbe1 {[%clk 0:00:38]}  Rg8 {[%clk 0:00:28]} 30. Kh1 {[%clk 0:00:31]}  Ne4 {[%clk 0:00:25]} 31. Bxe5 {[%clk 0:00:24]}  Bxe5 {[%clk 0:00:20]} 32. Rxe4 {[%clk 0:00:24]}  Qxe4 {[%clk 0:00:11]} 33. Qxh6+ {[%clk 0:00:24]}  Qh7 {[%clk 0:00:11]} 34. Qxh7+ {[%clk 0:00:24]}  Kxh7 {[%clk 0:00:12]} 35. Nxe5 {[%clk 0:00:25]}  Re8 {[%clk 0:00:12]} 36. Nxf3 {[%clk 0:00:24]}  Re2 {[%clk 0:00:09]} 37. Rd1 {[%clk 0:00:23]} 1-0


[Site "https://www.chess.com"]

[Event "Titled Tuesday Blitz August 1 Late 2023"]
[White "Sreyas Payyappat"]
[Black "Vifleemskaia, Svetlana"]
[WhiteFideId "46674969"]
[BlackFideId "4129490"]
[WhiteElo "2512"]
[BlackElo "2384"]
[Result "1-0"]
[Round "7"]
[TimeControl "180+1"]
[Date "2023.08.01"]
[WhiteClock "0:01:40"]
[BlackClock "0:00:42"]
[Board "82"]

1. e4 {[%clk 0:03:00]}  e5 {[%clk 0:02:59]} 2. Nf3 {[%clk 0:03:00]}  Nc6 {[%clk 0:02:59]} 3. Bc4 {[%clk 0:02:59]}  Nf6 {[%clk 0:02:58]} 4. d4 {[%clk 0:02:58]}  exd4 {[%clk 0:02:57]} 5. e5 {[%clk 0:02:59]}  d5 {[%clk 0:02:57]} 6. Bb5 {[%clk 0:02:59]}  Ne4 {[%clk 0:02:56]} 7. Nxd4 {[%clk 0:03:00]}  Bd7 {[%clk 0:02:56]} 8. Bxc6 {[%clk 0:02:57]}  bxc6 {[%clk 0:02:57]} 9. O-O {[%clk 0:02:57]}  Bc5 {[%clk 0:02:57]} 10. c3 {[%clk 0:02:58]}  O-O {[%clk 0:02:54]} 11. f3 {[%clk 0:02:55]}  Ng5 {[%clk 0:02:54]} 12. f4 {[%clk 0:02:55]}  Ne4 {[%clk 0:02:53]} 13. Be3 {[%clk 0:02:51]}  Qe7 {[%clk 0:02:46]} 14. Nd2 {[%clk 0:02:49]}  Nxd2 {[%clk 0:02:45]} 15. Qxd2 {[%clk 0:02:47]}  Bb6 {[%clk 0:02:41]} 16. Rae1 {[%clk 0:02:46]}  c5 {[%clk 0:02:30]} 17. Nb3 {[%clk 0:02:44]}  Bb5 {[%clk 0:02:27]} 18. Rf3 {[%clk 0:02:38]}  Rad8 {[%clk 0:02:20]} 19. f5 {[%clk 0:02:32]}  f6 {[%clk 0:02:16]} 20. exf6 {[%clk 0:02:23]}  Qxf6 {[%clk 0:02:10]} 21. Nxc5 {[%clk 0:02:21]}  Bxc5 {[%clk 0:02:00]} 22. Bxc5 {[%clk 0:02:21]}  Rfe8 {[%clk 0:01:47]} 23. Rxe8+ {[%clk 0:02:18]}  Bxe8 {[%clk 0:01:42]} 24. Bd4 {[%clk 0:02:18]}  Qh6 {[%clk 0:01:10]} 25. Qxh6 {[%clk 0:02:08]}  gxh6 {[%clk 0:01:09]} 26. Rg3+ {[%clk 0:02:09]}  Kf8 {[%clk 0:01:05]} 27. Bg7+ {[%clk 0:01:56]}  Kf7 {[%clk 0:01:03]} 28. Bxh6 {[%clk 0:01:57]}  Rb8 {[%clk 0:00:55]} 29. Rg7+ {[%clk 0:01:51]}  Kf6 {[%clk 0:00:55]} 30. g4 {[%clk 0:01:49]}  Rxb2 {[%clk 0:00:52]} 31. Rxc7 {[%clk 0:01:43]}  Rxa2 {[%clk 0:00:50]} 32. h4 {[%clk 0:01:42]}  Ra4 {[%clk 0:00:42]} 33. Bg7# {[%clk 0:01:40]} 1-0


[Site "https://www.chess.com"]

[Event "Titled Tuesday Blitz August 1 Late 2023"]
[White "FromTexas54"]
[Black "Balla, Tamas-Kristof"]
[BlackFideId "1208497"]
[WhiteElo "2506"]
[BlackElo "2374"]
[Result "1-0"]
[Round "7"]
[TimeControl "180+1"]
[Date "2023.08.01"]
[WhiteClock "0:01:25"]
[BlackClock "0:00:26"]
[Board "84"]

1. Nf3 {[%clk 0:02:59]}  c5 {[%clk 0:03:00]} 2. g3 {[%clk 0:02:58]}  Nc6 {[%clk 0:03:00]} 3. Bg2 {[%clk 0:02:59]}  g6 {[%clk 0:03:00]} 4. O-O {[%clk 0:03:00]}  Bg7 {[%clk 0:03:00]} 5. c4 {[%clk 0:03:01]}  e6 {[%clk 0:03:00]} 6. Nc3 {[%clk 0:03:01]}  Nge7 {[%clk 0:03:00]} 7. e3 {[%clk 0:03:01]}  O-O {[%clk 0:03:00]} 8. Qe2 {[%clk 0:03:01]}  d5 {[%clk 0:02:56]} 9. cxd5 {[%clk 0:03:00]}  exd5 {[%clk 0:02:57]} 10. d4 {[%clk 0:02:58]}  cxd4 {[%clk 0:02:54]} 11. exd4 {[%clk 0:02:58]}  Nf5 {[%clk 0:02:41]} 12. Bg5 {[%clk 0:02:55]}  f6 {[%clk 0:02:13]} 13. Bf4 {[%clk 0:02:52]}  Re8 {[%clk 0:02:02]} 14. Qd3 {[%clk 0:02:48]}  Be6 {[%clk 0:01:35]} 15. Rae1 {[%clk 0:02:37]}  Qd7 {[%clk 0:01:35]} 16. h4 {[%clk 0:02:28]}  Bf7 {[%clk 0:01:34]} 17. Rxe8+ {[%clk 0:02:25]}  Rxe8 {[%clk 0:01:35]} 18. Bh3 {[%clk 0:02:22]}  Be6 {[%clk 0:01:29]} 19. Bg2 {[%clk 0:02:16]}  Bf7 {[%clk 0:01:21]} 20. Rd1 {[%clk 0:02:13]}  Nd6 {[%clk 0:01:14]} 21. Nd2 {[%clk 0:02:08]}  Ne4 {[%clk 0:01:04]} 22. Ndxe4 {[%clk 0:02:05]}  dxe4 {[%clk 0:01:04]} 23. Nxe4 {[%clk 0:01:59]}  f5 {[%clk 0:01:04]} 24. Nc5 {[%clk 0:01:58]}  Qxd4 {[%clk 0:00:58]} 25. Qc2 {[%clk 0:01:50]}  Qb4 {[%clk 0:00:48]} 26. Nxb7 {[%clk 0:01:45]}  Nd4 {[%clk 0:00:47]} 27. Qc7 {[%clk 0:01:41]}  Ne2+ {[%clk 0:00:44]} 28. Kh2 {[%clk 0:01:37]}  Nxf4 {[%clk 0:00:44]} 29. Nd6 {[%clk 0:01:27]}  Nxg2 {[%clk 0:00:26]} 30. Qxf7+ {[%clk 0:01:25]} 1-0


[Site "https://www.chess.com"]

[Event "Titled Tuesday Blitz August 1 Late 2023"]
[White "Topalov, Aleksandar"]
[Black "Jovic, Stanoje"]
[WhiteFideId "925659"]
[BlackFideId "905020"]
[WhiteElo "2357"]
[BlackElo "2501"]
[Result "0-1"]
[Round "7"]
[TimeControl "180+1"]
[Date "2023.08.01"]
[WhiteClock "0:00:00"]
[BlackClock "0:00:33"]
[Board "86"]

1. b3 {[%clk 0:03:00]}  Nf6 {[%clk 0:02:59]} 2. Bb2 {[%clk 0:02:58]}  e6 {[%clk 0:02:59]} 3. Nf3 {[%clk 0:02:58]}  b6 {[%clk 0:02:56]} 4. c4 {[%clk 0:02:56]}  Bb7 {[%clk 0:02:56]} 5. g3 {[%clk 0:02:56]}  c5 {[%clk 0:02:54]} 6. Bg2 {[%clk 0:02:56]}  d5 {[%clk 0:02:53]} 7. cxd5 {[%clk 0:02:54]}  exd5 {[%clk 0:02:51]} 8. O-O {[%clk 0:02:51]}  d4 {[%clk 0:02:48]} 9. e3 {[%clk 0:02:48]}  d3 {[%clk 0:02:46]} 10. Nc3 {[%clk 0:02:40]}  Be7 {[%clk 0:02:44]} 11. Qb1 {[%clk 0:02:34]}  Na6 {[%clk 0:02:36]} 12. a3 {[%clk 0:02:32]}  O-O {[%clk 0:02:15]} 13. Ne1 {[%clk 0:02:31]}  Bxg2 {[%clk 0:02:14]} 14. Kxg2 {[%clk 0:02:31]}  c4 {[%clk 0:02:13]} 15. bxc4 {[%clk 0:02:27]}  Nc5 {[%clk 0:02:12]} 16. a4 {[%clk 0:02:10]}  Qd7 {[%clk 0:02:02]} 17. Ba3 {[%clk 0:02:04]}  Rfd8 {[%clk 0:01:48]} 18. a5 {[%clk 0:01:58]}  Rab8 {[%clk 0:01:41]} 19. Bxc5 {[%clk 0:01:47]}  bxc5 {[%clk 0:01:39]} 20. Qd1 {[%clk 0:01:31]}  Qe6 {[%clk 0:01:35]} 21. Ra4 {[%clk 0:00:45]}  Rb4 {[%clk 0:01:34]} 22. Qa1 {[%clk 0:00:15]}  Qxc4 {[%clk 0:01:29]} 23. Ra2 {[%clk 0:00:09]}  Rdb8 {[%clk 0:01:07]} 24. Nf3 {[%clk 0:00:08]}  Nd7 {[%clk 0:01:06]} 25. Rc1 {[%clk 0:00:07]}  Bf6 {[%clk 0:01:05]} 26. Kg1 {[%clk 0:00:05]}  Qg4 {[%clk 0:01:01]} 27. Ne1 {[%clk 0:00:03]}  c4 {[%clk 0:00:54]} 28. Ra4 {[%clk 0:00:02]}  h5 {[%clk 0:00:51]} 29. Rxb4 {[%clk 0:00:02]}  Rxb4 {[%clk 0:00:51]} 30. Qa3 {[%clk 0:00:03]}  Be7 {[%clk 0:00:50]} 31. Qa2 {[%clk 0:00:02]}  h4 {[%clk 0:00:49]} 32. Nd5 {[%clk 0:00:02]}  Ne5 {[%clk 0:00:34]} 33. Nxb4 {[%clk 0:00:00]}  Bxb4 {[%clk 0:00:33]} 0-1


[Site "https://www.chess.com"]

[Event "Titled Tuesday Blitz August 1 Late 2023"]
[White "MFatigue"]
[Black "Crispin Ferreras, Darvi Abraham"]
[BlackFideId "6402771"]
[WhiteElo "2492"]
[BlackElo "2344"]
[Result "0-1"]
[Round "7"]
[TimeControl "180+1"]
[Date "2023.08.01"]
[WhiteClock "0:00:12"]
[BlackClock "0:00:25"]
[Board "88"]

1. e4 {[%clk 0:03:00]}  e6 {[%clk 0:02:59]} 2. d4 {[%clk 0:03:00]}  d5 {[%clk 0:02:58]} 3. Nc3 {[%clk 0:03:01]}  Nf6 {[%clk 0:02:55]} 4. e5 {[%clk 0:03:01]}  Nfd7 {[%clk 0:02:55]} 5. f4 {[%clk 0:03:02]}  c5 {[%clk 0:02:55]} 6. Nf3 {[%clk 0:03:03]}  Nc6 {[%clk 0:02:56]} 7. Be3 {[%clk 0:03:04]}  Qb6 {[%clk 0:02:53]} 8. Na4 {[%clk 0:03:03]}  Qa5+ {[%clk 0:02:52]} 9. c3 {[%clk 0:03:04]}  cxd4 {[%clk 0:02:52]} 10. b4 {[%clk 0:03:05]}  Qc7 {[%clk 0:02:27]} 11. Nxd4 {[%clk 0:03:04]}  Nxd4 {[%clk 0:02:25]} 12. Bxd4 {[%clk 0:03:05]}  Be7 {[%clk 0:02:20]} 13. Nb2 {[%clk 0:03:03]}  O-O {[%clk 0:02:20]} 14. Bd3 {[%clk 0:03:03]}  a5 {[%clk 0:02:19]} 15. a3 {[%clk 0:02:50]}  b6 {[%clk 0:02:18]} 16. O-O {[%clk 0:02:46]}  g6 {[%clk 0:02:17]} 17. Rf3 {[%clk 0:02:40]}  Ba6 {[%clk 0:02:17]} 18. Bc2 {[%clk 0:02:30]}  axb4 {[%clk 0:02:15]} 19. axb4 {[%clk 0:02:30]}  Bb7 {[%clk 0:02:14]} 20. Rxa8 {[%clk 0:02:22]}  Rxa8 {[%clk 0:02:14]} 21. Rh3 {[%clk 0:02:18]}  Nf8 {[%clk 0:02:14]} 22. Nd3 {[%clk 0:02:13]}  Ba6 {[%clk 0:02:12]} 23. Nf2 {[%clk 0:02:13]}  Qa7 {[%clk 0:02:07]} 24. Ng4 {[%clk 0:02:03]}  Bc4 {[%clk 0:02:05]} 25. Nh6+ {[%clk 0:02:03]}  Kg7 {[%clk 0:02:05]} 26. Kf2 {[%clk 0:01:54]}  Qa1 {[%clk 0:01:59]} 27. Bxb6 {[%clk 0:01:50]}  Qxd1 {[%clk 0:01:58]} 28. Bxd1 {[%clk 0:01:51]}  Ra2+ {[%clk 0:01:57]} 29. Ke1 {[%clk 0:01:30]}  Rxg2 {[%clk 0:01:53]} 30. Ng4 {[%clk 0:01:31]}  Rb2 {[%clk 0:01:51]} 31. Ne3 {[%clk 0:01:29]}  Bd3 {[%clk 0:01:47]} 32. Bd4 {[%clk 0:01:15]}  h5 {[%clk 0:01:32]} 33. Bb6 {[%clk 0:01:02]}  Nd7 {[%clk 0:01:27]} 34. Bd4 {[%clk 0:01:03]}  Nb8 {[%clk 0:01:26]} 35. Nf1 {[%clk 0:00:54]}  Be4 {[%clk 0:01:08]} 36. Be3 {[%clk 0:00:40]}  Nc6 {[%clk 0:01:05]} 37. Bd2 {[%clk 0:00:40]}  Bg2 {[%clk 0:01:03]} 38. Rd3 {[%clk 0:00:33]}  Be4 {[%clk 0:00:38]} 39. Re3 {[%clk 0:00:32]}  h4 {[%clk 0:00:33]} 40. Bf3 {[%clk 0:00:29]}  Rb1+ {[%clk 0:00:31]} 41. Ke2 {[%clk 0:00:30]}  Bf5 {[%clk 0:00:29]} 42. Bg2 {[%clk 0:00:24]}  d4 {[%clk 0:00:29]} 43. cxd4 {[%clk 0:00:22]}  Nxd4+ {[%clk 0:00:29]} 44. Kf2 {[%clk 0:00:22]}  Bxb4 {[%clk 0:00:28]} 45. Bxb4 {[%clk 0:00:22]}  Rxb4 {[%clk 0:00:28]} 46. Be4 {[%clk 0:00:16]}  Rb2+ {[%clk 0:00:26]} 47. Kg1 {[%clk 0:00:16]}  Ne2+ {[%clk 0:00:25]} 48. Kh1 {[%clk 0:00:16]}  Nxf4 {[%clk 0:00:25]} 49. Bxf5 {[%clk 0:00:16]}  gxf5 {[%clk 0:00:25]} 50. Kg1 {[%clk 0:00:16]}  Kg6 {[%clk 0:00:25]} 51. Rf3 {[%clk 0:00:17]}  Nd5 {[%clk 0:00:25]} 52. Ra3 {[%clk 0:00:16]}  f4 {[%clk 0:00:25]} 53. Rf3 {[%clk 0:00:15]}  Kf5 {[%clk 0:00:25]} 54. Rg3 {[%clk 0:00:12]}  hxg3 {[%clk 0:00:25]} 0-1


[Site "https://www.chess.com"]

[Event "Titled Tuesday Blitz August 1 Late 2023"]
[White "Peycheva, Gergana"]
[Black "Lopez Gracia, Fernando"]
[WhiteFideId "2916711"]
[BlackFideId "2207184"]
[WhiteElo "2492"]
[BlackElo "2327"]
[Result "1-0"]
[Round "7"]
[TimeControl "180+1"]
[Date "2023.08.01"]
[WhiteClock "0:00:15"]
[BlackClock "0:00:25"]
[Board "90"]

1. d4 {[%clk 0:03:00]}  Nf6 {[%clk 0:02:56]} 2. c4 {[%clk 0:02:59]}  e6 {[%clk 0:02:55]} 3. Nc3 {[%clk 0:02:59]}  Bb4 {[%clk 0:02:53]} 4. Qc2 {[%clk 0:02:59]}  c5 {[%clk 0:02:52]} 5. dxc5 {[%clk 0:02:53]}  Bxc5 {[%clk 0:02:52]} 6. Nf3 {[%clk 0:02:50]}  Qb6 {[%clk 0:02:47]} 7. e3 {[%clk 0:02:47]}  Be7 {[%clk 0:02:47]} 8. Be2 {[%clk 0:02:47]}  a6 {[%clk 0:02:45]} 9. O-O {[%clk 0:02:45]}  Qc7 {[%clk 0:02:44]} 10. b3 {[%clk 0:02:44]}  d6 {[%clk 0:02:44]} 11. Bb2 {[%clk 0:02:44]}  O-O {[%clk 0:02:45]} 12. Rfd1 {[%clk 0:02:43]}  Nbd7 {[%clk 0:02:44]} 13. Nd4 {[%clk 0:02:40]}  b6 {[%clk 0:02:37]} 14. Bf3 {[%clk 0:02:40]}  Bb7 {[%clk 0:02:37]} 15. Qe2 {[%clk 0:02:28]}  Ne5 {[%clk 0:02:24]} 16. Bxb7 {[%clk 0:02:27]}  Qxb7 {[%clk 0:02:25]} 17. Ba3 {[%clk 0:02:27]}  Rfd8 {[%clk 0:02:19]} 18. h3 {[%clk 0:02:10]}  Rac8 {[%clk 0:02:13]} 19. Rac1 {[%clk 0:02:08]}  d5 {[%clk 0:02:04]} 20. Bxe7 {[%clk 0:02:06]}  Qxe7 {[%clk 0:02:04]} 21. cxd5 {[%clk 0:02:06]}  Nxd5 {[%clk 0:02:01]} 22. Nxd5 {[%clk 0:02:05]}  exd5 {[%clk 0:02:01]} 23. Qxa6 {[%clk 0:01:59]}  Ra8 {[%clk 0:01:50]} 24. Qxb6 {[%clk 0:01:56]}  Rxa2 {[%clk 0:01:19]} 25. Nf5 {[%clk 0:01:45]}  Qg5 {[%clk 0:01:18]} 26. Qxd8+ {[%clk 0:01:18]}  Qxd8 {[%clk 0:01:15]} 27. Rxd5 {[%clk 0:00:58]}  Nd7 {[%clk 0:01:10]} 28. Rc8 {[%clk 0:00:43]}  Qxc8 {[%clk 0:01:02]} 29. Ne7+ {[%clk 0:00:42]}  Kf8 {[%clk 0:00:59]} 30. Nxc8 {[%clk 0:00:43]}  Ra7 {[%clk 0:00:41]} 31. b4 {[%clk 0:00:37]}  Ke8 {[%clk 0:00:35]} 32. b5 {[%clk 0:00:31]}  Nf6 {[%clk 0:00:33]} 33. Rc5 {[%clk 0:00:20]}  Kd7 {[%clk 0:00:30]} 34. Nxa7 {[%clk 0:00:18]}  Kd6 {[%clk 0:00:28]} 35. Rc1 {[%clk 0:00:16]}  Nd7 {[%clk 0:00:28]} 36. b6 {[%clk 0:00:14]}  Nxb6 {[%clk 0:00:27]} 37. Rc6+ {[%clk 0:00:14]}  Kd7 {[%clk 0:00:27]} 38. Rxb6 {[%clk 0:00:15]}  Ke7 {[%clk 0:00:25]} 39. Rb1 {[%clk 0:00:15]} 1-0


[Site "https://www.chess.com"]

[Event "Titled Tuesday Blitz August 1 Late 2023"]
[White "Willy, Stephen"]
[Black "Pein, Malcolm"]
[WhiteFideId "30981468"]
[BlackFideId "400289"]
[WhiteElo "2485"]
[BlackElo "2311"]
[Result "1-0"]
[Round "7"]
[TimeControl "180+1"]
[Date "2023.08.01"]
[WhiteClock "0:00:03"]
[BlackClock "0:00:00"]
[Board "91"]

1. e4 {[%clk 0:03:00]}  c5 {[%clk 0:02:57]} 2. c3 {[%clk 0:02:54]}  d5 {[%clk 0:02:55]} 3. exd5 {[%clk 0:02:54]}  Nf6 {[%clk 0:02:55]} 4. d4 {[%clk 0:02:54]}  cxd4 {[%clk 0:02:52]} 5. Nf3 {[%clk 0:02:52]}  Qxd5 {[%clk 0:02:38]} 6. cxd4 {[%clk 0:02:49]}  Bg4 {[%clk 0:02:32]} 7. Nc3 {[%clk 0:02:37]}  Bxf3 {[%clk 0:02:31]} 8. gxf3 {[%clk 0:02:32]}  Qa5 {[%clk 0:02:02]} 9. Qb3 {[%clk 0:02:16]}  Qb6 {[%clk 0:01:55]} 10. Bb5+ {[%clk 0:02:06]}  Nbd7 {[%clk 0:01:48]} 11. Qa4 {[%clk 0:01:54]}  e6 {[%clk 0:01:22]} 12. Bg5 {[%clk 0:01:51]}  Rd8 {[%clk 0:01:17]} 13. d5 {[%clk 0:01:41]}  exd5 {[%clk 0:01:11]} 14. O-O-O {[%clk 0:01:25]}  Be7 {[%clk 0:00:46]} 15. Rhe1 {[%clk 0:01:19]}  Qc5 {[%clk 0:00:39]} 16. Bxf6 {[%clk 0:01:06]}  gxf6 {[%clk 0:00:38]} 17. Rxd5 {[%clk 0:01:06]}  Qxf2 {[%clk 0:00:38]} 18. Bxd7+ {[%clk 0:00:45]}  Kf8 {[%clk 0:00:37]} 19. Rxe7 {[%clk 0:00:45]}  Rg8 {[%clk 0:00:24]} 20. Qa3 {[%clk 0:00:20]}  Rg1+ {[%clk 0:00:14]} 21. Rd1 {[%clk 0:00:18]}  Kg7 {[%clk 0:00:09]} 22. Qb3 {[%clk 0:00:13]}  Rxd1+ {[%clk 0:00:06]} 23. Nxd1 {[%clk 0:00:13]}  Qc5+ {[%clk 0:00:05]} 24. Qc3 {[%clk 0:00:08]}  Qxe7 {[%clk 0:00:05]} 25. Bf5 {[%clk 0:00:07]}  Qe5 {[%clk 0:00:05]} 26. Qxe5 {[%clk 0:00:06]}  fxe5 {[%clk 0:00:05]} 27. Be4 {[%clk 0:00:07]}  b6 {[%clk 0:00:04]} 28. Ne3 {[%clk 0:00:07]}  Rc8+ {[%clk 0:00:02]} 29. Kd2 {[%clk 0:00:06]}  Kf6 {[%clk 0:00:02]} 30. Bxh7 {[%clk 0:00:05]}  Rh8 {[%clk 0:00:02]} 31. Ng4+ {[%clk 0:00:05]}  Kg5 {[%clk 0:00:00]} 32. Bd3 {[%clk 0:00:03]} 1-0


[Site "https://www.chess.com"]